bitfinex/quotes_ETHUSD_20250815
["timestamp","ask_amount","ask_price","bid_price","bid_amount"]
[1755292398865,3.4545,4418.0,4417.5,4.1928]
[1755292399195,2.3903,4417.8,4417.5,4.1928]
[1755292399397,0.4545,4418.0,4417.5,4.1928]
[1755292399698,2.3903,4417.7,4417.5,4.1928]
[1755292399903,2.3903,4417.7,4417.5,6.45651647]
[1755292400104,2.3903,4417.7,4417.5,4.1928]
[1755292400286,2.8448,4417.6,4417.3,3.53]
[1755292400486,5.3903,4417.6,4417.3,3.53]
[1755292400692,2.8448,4417.5,4417.3,3.53]
[1755292400890,2.3903,4417.4,4417.3,3.53]
[1755292401968,2.3903,4417.4,4416.8,2.2640422]
[1755292401969,2.8448,4417.4,4416.8,2.2640422]
[1755292402289,2.3903,4417.4,4417.1,2.26388814]
[1755292403129,2.3903,4417.3,4416.9,2.81398953]
[1755292403300,2.3903,4417.2,4416.9,0.55]
[1755292403509,2.3903,4417.2,4416.9,2.81403129]
[1755292403799,3.0,4417.6,4416.9,2.81403129]
[1755292403800,2.3903,4417.5,4417.1,2.26392882]
[1755292404000,2.3903,4417.5,4417.2,2.26386653]
[1755292404162,0.1128,4417.7,4417.2,2.26383316]
[1755292404371,2.3903,4417.6,4417.2,2.26383316]
[1755292404604,0.1128,4417.7,4417.1,5.79291536]
[1755292404813,2.3903,4417.5,4417.2,2.26386993]
[1755292405310,0.59806504,4417.7,4417.2,0.55]
[1755292405482,3.59806504,4418.0,4417.5,0.55]
[1755292405673,0.48526504,4417.9,4417.5,4.079]
[1755292405874,3.48526504,4417.8,4417.5,4.079]
[1755292406086,0.48526504,4417.7,4417.5,6.34271149]
[1755292406274,3.0,4417.6,4417.3,3.529]
[1755292406483,0.48526504,4417.7,4417.5,2.26372382]
[1755292406800,0.59806504,4417.9,4417.5,2.26372382]
[1755292407002,0.48526504,4417.8,4417.6,3.529]
[1755292407319,0.48526504,4417.8,4416.5,0.001]
[1755292407320,30.0,4417.6,4416.5,0.001]
[1755292407471,0.60737306,4417.1,4416.5,0.001]
[1755292407674,1.0926381,4417.0,4416.5,0.001]
[1755292407907,0.48526504,4416.9,4416.5,0.001]
[1755292408080,0.48526504,4416.8,4416.5,0.551]
[1755292408282,3.48526504,4416.7,4416.5,0.551]
[1755292408489,2.3903,4416.8,4416.6,2.67328511]
[1755292408490,0.48526504,4416.8,4416.6,2.67328511]
[1755292408812,2.3903,4417.6,4416.6,2.67328511]
[1755292408813,0.48583119,4417.3,4416.7,2.2641175]
[1755292409103,0.48583119,4417.3,4416.6,0.8575]
[1755292409104,0.48583119,4417.2,4417.1,0.001]
[1755292409308,5.87613119,4417.2,4417.1,0.001]
[1755292409521,6.33063119,4417.2,4417.1,0.001]
[1755292416323,3.48583119,4417.2,4417.1,0.001]
[1755292416526,3.0,4417.2,4417.1,0.001]
[1755292417023,3.0,4417.2,4417.1,0.9929]
[1755292418019,6.25523119,4417.2,4417.1,0.001]
[1755292418194,6.86260425,4417.2,4417.1,0.001]
[1755292418539,36.25523119,4417.2,4417.1,0.001]
[1755292419829,39.87910875,4417.2,4417.1,0.001]
[1755292420003,37.06506194,4417.2,4417.1,0.001]
[1755292420204,2.26413385,4416.7,4416.6,0.001]
[1755292420412,35.3939079,4416.7,4416.2,0.001]
[1755292420736,2.26428765,4416.4,4416.2,0.001]
[1755292421033,30.48583119,4416.3,4416.2,0.001]
[1755292421337,36.25523119,4416.3,4416.2,0.001]
[1755292421695,38.51957011,4416.3,4416.2,0.001]
[1755292422630,38.69073777,4416.3,4416.2,0.001]
[1755292423529,8.69073777,4416.3,4416.2,0.001]
[1755292423696,38.20490658,4416.3,4416.2,0.001]
[1755292424028,38.68955749,4416.3,4416.2,0.001]
[1755292425227,36.42521857,4416.3,4416.2,0.001]
[1755292425436,39.49691835,4416.3,4416.2,0.001]
[1755292425642,38.68955749,4416.3,4416.2,0.001]
[1755292427336,38.68955749,4416.3,4415.3,0.001]
[1755292427337,2.26452153,4416.0,4415.3,0.001]
[1755292427496,3.0,4415.8,4415.3,0.001]
[1755292427697,35.74924622,4415.8,4415.3,0.001]
[1755292427892,33.48465091,4415.8,4415.3,0.001]
[1755292428113,39.43916757,4415.8,4415.3,0.001]
[1755292428618,38.72305422,4415.8,4415.3,0.001]
[1755292429595,39.93344231,4415.8,4415.3,0.001]
[1755292430100,38.72305422,4415.8,4415.3,0.001]
[1755292432317,5.2646466,4415.7,4415.3,0.001]
[1755292432615,38.51869751,4415.7,4415.3,0.001]
[1755292433368,38.85460605,4415.7,4415.3,0.001]
[1755292433645,38.85453514,4415.7,4415.3,0.001]
[1755292434006,2.26480047,4415.4,4415.3,0.001]
[1755292434301,35.86305138,4415.4,4415.3,0.001]
[1755292434532,38.51885138,4415.4,4415.3,0.001]
[1755292434738,33.48465091,4415.4,4415.3,0.001]
[1755292434925,33.48465091,4415.4,4415.3,0.4429]
[1755292435538,33.48465091,4415.4,4415.3,0.001]
[1755292435712,36.39916193,4415.4,4415.3,0.001]
[1755292435909,33.48465091,4415.4,4415.3,0.001]
[1755292436132,33.48465091,4415.4,4415.3,0.4429]
[1755292436336,34.08896193,4415.4,4415.3,0.4429]
[1755292436741,34.08896193,4415.4,4415.3,0.001]
[1755292437114,33.48465091,4415.4,4415.3,0.4429]
[1755292437660,35.79485091,4415.4,4415.3,0.001]
[1755292437812,36.39916193,4415.4,4415.3,0.001]
[1755292438520,34.08896193,4415.4,4415.3,0.001]
[1755292438726,33.48465091,4415.4,4415.3,0.001]
[1755292439648,35.79485091,4415.4,4415.3,0.001]
[1755292440544,38.05965138,4415.4,4415.3,0.001]
[1755292440859,39.324572,4415.4,4415.3,0.001]
[1755292441159,38.51885138,4415.4,4415.3,0.001]
[1755292441649,39.87885138,4415.4,4415.3,0.001]
[1755292442154,41.08742352,4415.4,4415.3,0.001]
[1755292442322,4.36,4415.0,4414.8,0.001]
[1755292442520,38.31937111,4414.9,4414.8,0.001]
[1755292442856,39.39445696,4414.9,4414.8,0.001]
[1755292443061,39.87842047,4414.9,4414.8,0.001]
[1755292443545,40.21454136,4414.9,4414.8,0.001]
[1755292444242,40.00448088,4414.9,4414.8,0.001]
[1755292444442,40.32815836,4414.9,4414.8,0.001]
[1755292444661,2.26529776,4414.5,4414.1,0.02]
[1755292444959,31.29074583,4414.4,4414.1,0.02]
[1755292445162,0.48396351,4414.3,4414.1,0.02]
[1755292445308,0.59756351,4414.2,4414.1,0.02]
[1755292446357,3.59756351,4414.2,4414.1,0.02]
[1755292446559,33.59756351,4414.2,4414.1,0.02]
[1755292447559,34.95756351,4414.2,4414.1,0.02]
[1755292447747,36.07086351,4414.2,4414.1,0.02]
[1755292448117,37.28103699,4414.2,4414.1,0.02]
[1755292448509,37.28381131,4414.2,4414.1,0.02]
[1755292449247,36.07086351,4414.2,4414.1,0.02]
[1755292450261,37.43086351,4414.2,4414.1,0.02]
[1755292450562,40.47741846,4414.2,4414.1,0.02]
[1755292451217,40.68801136,4414.2,4414.1,0.02]
[1755292451630,6.6255188,4414.0,4413.6,0.001]
[1755292451834,37.65701401,4414.0,4413.6,0.001]
[1755292452036,41.74766009,4414.0,4413.6,0.001]
[1755292452428,5.26558946,4413.9,4413.6,0.001]
[1755292452664,0.1136,4413.7,4413.6,0.001]
[1755292452966,33.59756351,4413.7,4413.6,0.001]
[1755292453121,38.46288665,4413.7,4413.6,0.001]
[1755292453336,38.46288665,4413.7,4413.6,0.4734]
[1755292453337,33.59756351,4413.7,4413.6,0.4734]
[1755292453671,34.80989559,4413.7,4413.6,0.4734]
[1755292454085,34.80989559,4413.7,4413.6,0.001]
[1755292454231,34.97791688,4413.7,4413.6,0.001]
[1755292454433,33.7655848,4413.7,4413.6,0.001]
[1755292455576,36.2388848,4413.7,4413.6,0.001]
[1755292455743,36.36516112,4413.7,4413.6,0.001]
[1755292455962,38.63083391,4413.7,4413.6,0.001]
[1755292456152,40.85592307,4413.7,4413.6,0.001]
[1755292456794,40.85588835,4413.7,4413.6,0.001]
[1755292457300,2.26582121,4413.5,4412.9,0.001]
[1755292457495,3.1136,4413.3,4412.9,0.001]
[1755292457700,0.1136,4413.0,4412.9,0.001]
[1755292457899,0.59756351,4413.0,4412.9,0.001]
[1755292458199,0.59756351,4413.0,4412.9,0.4734]
[1755292459397,1.8089339,4413.0,4412.9,0.4734]
[1755292459695,1.8089339,4413.0,4412.9,0.001]
[1755292460097,1.8089339,4413.0,4412.9,0.4734]
[1755292461255,7.2822339,4413.0,4412.9,0.001]
[1755292461701,4.8089339,4413.0,4412.9,0.001]
[1755292461908,3.59756351,4413.0,4412.9,0.4734]
[1755292462399,4.8089339,4413.0,4412.9,0.4734]
[1755292462551,4.40496043,4413.0,4412.9,0.4734]
[1755292462907,3.59756351,4413.0,4412.9,0.8177]
[1755292463058,3.48396351,4413.0,4412.9,0.8177]
[1755292463259,3.59756351,4413.0,4412.9,0.4734]
[1755292466477,4.20301768,4413.0,4412.9,0.4734]
[1755292467487,3.48396351,4413.0,4412.9,0.4734]
[1755292467655,3.48396351,4413.0,4412.9,0.8177]
[1755292468773,3.48396351,4413.0,4412.9,0.4734]
[1755292472785,3.48396351,4413.0,4412.9,0.001]
[1755292473161,3.48396351,4413.0,4412.9,0.4734]
[1755292474118,0.48396351,4413.0,4412.9,0.4734]
[1755292474413,0.60545417,4413.7,4413.0,0.55]
[1755292474562,0.48572923,4413.6,4413.0,0.6638]
[1755292474766,0.48572923,4413.5,4413.1,0.4724]
[1755292474970,0.48572923,4413.4,4413.1,0.4724]
[1755292475193,0.48572923,4413.3,4413.1,0.4724]
[1755292475395,0.1136,4413.6,4413.0,0.55]
[1755292475596,0.48579418,4413.5,4413.2,0.4724]
[1755292475802,3.48579418,4413.4,4413.0,0.4724]
[1755292475999,0.48579418,4413.3,4413.0,0.4724]
[1755292476198,0.48579418,4413.2,4412.9,0.001]
[1755292476371,0.48579418,4413.1,4412.9,0.001]
[1755292476562,0.48579418,4413.0,4412.9,0.001]
[1755292477369,0.48579418,4413.1,4412.9,0.001]
[1755292477606,0.48579418,4413.0,4412.9,0.001]
[1755292477819,0.48579418,4413.1,4412.9,0.001]
[1755292477975,0.48579418,4413.0,4412.9,0.001]
[1755292478753,0.48579418,4413.0,4412.9,0.4721]
[1755292479959,0.48579418,4413.1,4412.9,0.4721]
[1755292480117,0.48579418,4413.0,4412.9,0.4721]
[1755292480316,0.48579418,4413.1,4412.9,0.4721]
[1755292480637,0.1136,4413.2,4412.9,0.4721]
[1755292480638,0.48579418,4413.0,4412.9,0.4721]
[1755292480824,0.48579418,4413.1,4412.9,0.4721]
[1755292481162,0.1136,4413.2,4413.0,0.55]
[1755292481310,0.80939692,4414.2,4413.2,0.55]
[1755292481311,0.48579418,4413.6,4413.2,0.55]
[1755292481506,0.48579418,4413.6,4413.4,0.6636]
[1755292481751,0.002,4414.2,4413.6,2.81572412]
[1755292481752,0.48579418,4414.0,4413.6,2.81572412]
[1755292482045,0.48579418,4414.1,4413.6,0.55]
[1755292482207,0.002,4414.2,4413.6,0.55]
[1755292482208,0.002,4414.2,4413.6,1.0211]
[1755292482608,0.48779418,4414.2,4413.6,1.0211]
[1755292482848,0.002,4414.2,4413.6,1.0211]
[1755292483459,0.002,4414.2,4413.6,3.30948136]
[1755292483744,0.002,4414.2,4413.7,2.26567279]
[1755292483913,0.002,4414.2,4414.1,2.92906747]
[1755292484111,0.002,4414.2,4414.1,6.45006747]
[1755292484350,0.002,4414.2,4414.1,7.26546747]
[1755292484533,0.002,4414.2,4414.1,6.92116747]
[1755292484887,0.002,4414.2,4414.1,8.21857123]
[1755292485237,0.002,4414.2,4414.1,4.35327123]
[1755292485545,0.002,4414.2,4414.1,7.87427123]
[1755292487871,0.002,4414.2,4414.1,7.40317123]
[1755292488059,0.002,4414.2,4414.1,7.87427123]
[1755292489139,0.002,4414.2,4414.1,7.40317123]
[1755292489469,0.002,4414.2,4414.1,6.44906747]
[1755292489669,0.002,4414.2,4414.1,6.92016747]
[1755292490038,0.002,4414.2,4414.1,0.6636]
[1755292490359,0.002,4414.2,4414.1,4.1836]
[1755292490360,2.2685,4414.2,4414.1,4.1836]
[1755292490864,0.002,4414.2,4414.1,3.6336]
[1755292491173,0.002,4414.2,4414.1,4.1836]
[1755292491680,2.2685,4414.2,4414.1,4.1836]
[1755292491880,2.2685,4414.2,4414.1,3.6336]
[1755292492081,2.2685,4414.2,4414.1,3.52]
[1755292492578,2.2685,4414.2,4413.9,0.1136]
[1755292492781,0.4372,4414.2,4413.9,0.1136]
[1755292492942,2.2665,4414.1,4413.9,0.1136]
[1755292493296,2.2665,4414.0,4413.5,0.55]
[1755292493639,2.7017,4413.9,4413.2,3.519]
[1755292493755,0.1136,4413.8,4413.3,0.55]
[1755292493954,2.7017,4413.7,4413.3,0.55]
[1755292494157,2.7017,4413.6,4413.3,0.55]
[1755292494372,2.2665,4413.5,4413.3,0.55]
[1755292494877,2.2665,4413.4,4413.3,0.55]
[1755292495258,2.3801,4413.8,4413.3,0.55]
[1755292495446,2.2665,4413.7,4413.3,0.55]
[1755292495886,2.2665,4413.6,4413.3,0.55]
[1755292496486,2.2665,4413.5,4413.3,0.55]
[1755292496792,2.2665,4413.4,4413.3,0.55]
[1755292497656,2.7017,4413.4,4412.9,0.001]
[1755292498006,0.5488,4413.3,4412.9,0.001]
[1755292498156,2.8153,4413.3,4412.9,0.001]
[1755292498363,2.7017,4413.2,4412.9,0.001]
[1755292498880,2.2665,4413.1,4412.9,0.001]
[1755292499369,0.4352,4413.2,4412.9,0.001]
[1755292499550,2.2665,4413.0,4412.9,0.001]
[1755292500150,0.1136,4413.3,4412.9,0.001]
[1755292500394,0.1136,4413.3,4413.0,0.55]
[1755292500579,0.002,4414.2,4413.2,0.6636]
[1755292500758,0.002,4414.2,4413.6,0.55]
[1755292500965,0.002,4414.2,4414.1,2.37906747]
[1755292501185,0.002,4414.2,4414.1,5.89806747]
[1755292501388,0.002,4414.2,4414.1,0.98496376]
[1755292501673,2.2685,4414.2,4414.1,4.1826]
[1755292501999,0.002,4414.2,4414.1,6.91916747]
[1755292502593,0.002,4414.2,4414.1,4.1826]
[1755292503096,2.2685,4414.2,4414.1,0.1136]
[1755292503302,2.2685,4414.2,4414.0,3.519]
[1755292503517,2.2665,4414.1,4414.0,3.519]
[1755292505485,2.7017,4414.1,4413.8,3.518]
[1755292505818,2.7017,4414.1,4413.5,0.55]
[1755292505819,2.7017,4414.0,4413.5,3.518]
[1755292506023,0.1136,4413.8,4413.5,3.518]
[1755292506184,0.1136,4413.8,4413.1,0.1136]
[1755292506384,2.8255,4413.7,4413.2,3.518]
[1755292506603,0.1136,4413.3,4413.2,3.518]
[1755292506816,2.4878,4413.3,4413.2,3.518]
[1755292507020,2.9391,4413.3,4413.2,3.518]
[1755292507404,2.4878,4413.3,4412.9,3.519]
[1755292507618,0.1136,4413.3,4412.9,3.519]
[1755292507921,2.3742,4413.2,4412.9,3.519]
[1755292508085,2.3742,4413.1,4412.9,3.519]
[1755292509433,0.1136,4413.3,4413.1,2.26597685]
[1755292509636,0.1136,4413.7,4413.3,0.55]
[1755292509839,0.1136,4414.0,4413.5,0.55]
[1755292510133,0.002,4414.2,4413.7,0.55]
[1755292510495,0.002,4414.2,4413.8,0.4519]
[1755292510699,0.002,4414.2,4413.9,0.55]
[1755292510899,0.002,4414.2,4414.0,0.02265518]
[1755292511132,0.002,4414.2,4413.7,1.0019]
[1755292511338,0.002,4414.2,4413.9,0.1136]
[1755292511719,0.002,4414.2,4414.0,4.5199]
[1755292512230,0.002,4414.2,4413.9,0.1136]
[1755292513035,2.3762,4414.2,4413.9,0.1136]
[1755292513238,0.002,4414.2,4413.9,0.1136]
[1755292513445,2.3762,4414.2,4413.9,0.1136]
[1755292513605,0.002,4414.2,4413.9,0.1136]
[1755292513804,2.3742,4414.1,4413.9,0.1136]
[1755292514010,0.002,4414.2,4413.9,0.1136]
[1755292514433,2.3762,4414.2,4413.9,0.1136]
[1755292515944,2.3742,4414.1,4413.9,0.1136]
[1755292516444,2.3742,4414.0,4413.9,0.1136]
[1755292517039,2.3742,4414.0,4413.9,0.6636]
[1755292517943,2.8255,4414.0,4413.9,0.6636]
[1755292518115,2.8255,4414.0,4413.5,3.517]
[1755292518315,0.1136,4414.0,4413.5,3.517]
[1755292518515,2.8255,4413.9,4413.5,3.517]
[1755292518734,3.0,4413.7,4413.4,0.1136]
[1755292519026,2.8255,4413.6,4413.4,0.1136]
[1755292519230,2.8255,4413.6,4413.0,0.55]
[1755292519231,0.1136,4413.5,4412.9,0.001]
[1755292519834,2.3742,4413.4,4412.9,0.551]
[1755292520028,2.3742,4413.3,4412.9,0.551]
[1755292520360,2.3742,4413.2,4412.9,0.551]
[1755292520506,0.48586797,4413.9,4413.2,0.55]
[1755292520710,0.43586797,4413.9,4413.2,0.55]
[1755292520907,0.43586797,4413.9,4413.4,0.1136]
[1755292521238,5.3742,4413.8,4413.4,0.1136]
[1755292522948,0.1136,4414.0,4413.7,0.55]
[1755292523246,2.3742,4413.9,4413.5,0.55]
[1755292523545,2.3742,4413.9,4413.7,0.1136]
[1755292523718,5.3742,4413.8,4413.7,0.1136]
[1755292523919,2.3742,4413.8,4413.7,0.1136]
[1755292524132,2.8255,4413.8,4413.7,0.1136]
[1755292525531,2.3742,4413.8,4413.7,0.1136]
[1755292526955,0.002,4414.2,4413.7,0.1136]
[1755292527121,2.3742,4414.1,4413.7,0.1136]
[1755292527321,0.002,4414.2,4413.7,0.1136]
[1755292527521,2.3742,4414.0,4413.7,0.1136]
[1755292527756,2.3742,4413.9,4413.7,0.1136]
[1755292528455,3.002,4414.2,4413.7,0.1136]
[1755292528456,0.002,4414.2,4413.7,0.1136]
[1755292528660,5.3742,4413.8,4413.7,0.1136]
[1755292529244,3.0,4413.7,4413.3,0.551]
[1755292529445,2.3742,4413.7,4413.4,0.1136]
[1755292529652,0.1136,4414.0,4413.4,0.1136]
[1755292529855,3.1136,4414.0,4413.4,0.5655]
[1755292530037,3.1136,4414.0,4413.4,0.1136]
[1755292530239,2.3742,4413.9,4413.4,0.1136]
[1755292530668,3.0,4413.7,4413.3,0.001]
[1755292530866,2.3742,4413.6,4413.3,0.001]
[1755292531371,2.3742,4413.5,4413.3,0.001]
[1755292533573,0.4863224,4413.6,4413.3,0.001]
[1755292533794,2.3742,4413.4,4413.3,0.001]
[1755292535777,1.05644239,4414.1,4413.3,0.001]
[1755292535983,5.97414944,4414.0,4413.4,0.55]
[1755292536162,0.48634944,4413.9,4413.4,0.55]
[1755292536361,3.0,4413.7,4413.4,0.55]
[1755292536694,2.86864944,4413.8,4413.4,0.55]
[1755292536695,0.48634944,4413.6,4413.4,0.55]
[1755292536994,2.3823,4413.5,4413.4,0.55]
[1755292537382,2.86856132,4413.5,4413.4,0.55]
[1755292537579,2.3823,4413.5,4413.4,0.55]
[1755292537784,2.86856132,4413.5,4413.4,0.55]
[1755292537989,2.3823,4413.5,4413.4,0.55]
[1755292538295,2.86856132,4413.5,4413.4,0.55]
[1755292538710,2.86856132,4413.5,4413.3,0.1146]
[1755292538711,3.0,4413.4,4413.3,0.001]
[1755292538882,4.03246132,4413.4,4413.3,0.001]
[1755292539081,3.41476132,4413.4,4413.3,0.001]
[1755292539685,2.98216132,4413.4,4413.3,0.001]
[1755292539901,6.41476132,4413.4,4413.3,0.001]
[1755292540600,0.1136,4413.4,4413.3,3.25317814]
[1755292540801,0.48637831,4414.3,4414.1,2.81546747]
[1755292541000,0.002,4414.6,4414.1,0.55]
[1755292541169,0.002,4414.6,4414.1,2.81546747]
[1755292541362,0.002,4414.6,4414.1,3.36536747]
[1755292542696,0.002,4414.6,4414.1,1.0999]
[1755292542999,0.002,4414.6,4414.1,4.0534094]
[1755292548700,0.002,4414.6,4414.1,0.80164193]
[1755292548909,2.3843,4414.2,4414.1,0.1136]
[1755292549433,3.0,4414.1,4413.8,0.1136]
[1755292549588,2.8149,4414.1,4413.8,0.1136]
[1755292549770,0.1136,4414.1,4413.4,0.1136]
[1755292549973,3.0,4413.9,4413.4,0.1136]
[1755292550203,3.0,4413.7,4413.4,0.1136]
[1755292550427,2.3823,4413.6,4413.4,0.1136]
[1755292550708,0.1136,4414.1,4413.5,0.55]
[1755292550709,2.98134043,4414.1,4413.5,0.55]
[1755292551075,3.0,4413.9,4413.5,0.55]
[1755292551480,3.0,4413.7,4413.5,0.55]
[1755292551920,3.0,4413.5,4413.3,0.001]
[1755292552120,2.8149,4413.4,4413.3,0.001]
[1755292552281,5.8149,4413.4,4413.3,0.001]
[1755292552988,6.30037132,4413.4,4413.3,0.001]
[1755292554937,8.67979812,4413.4,4413.3,0.001]
[1755292555214,6.41397132,4413.4,4413.3,0.001]
[1755292561492,3.59907132,4413.4,4413.3,0.001]
[1755292561699,0.1136,4413.6,4413.3,0.4373]
[1755292562038,2.3823,4413.5,4413.3,0.001]
[1755292562235,3.0,4413.4,4413.3,0.001]
[1755292562529,2.8149,4413.4,4413.3,0.001]
[1755292562728,2.3823,4413.4,4413.3,0.001]
[1755292562907,5.8149,4413.4,4413.3,0.001]
[1755292563103,5.3823,4413.4,4413.3,0.001]
[1755292563516,5.86777132,4413.4,4413.3,0.001]
[1755292563727,5.8149,4413.4,4413.3,0.001]
[1755292563947,5.3823,4413.4,4413.3,0.001]
[1755292567562,5.3823,4413.4,4412.6,0.4363]
[1755292567563,30.0,4413.3,4412.1,0.02]
[1755292567748,3.1136,4413.0,4412.1,0.02]
[1755292567949,0.1136,4412.3,4412.1,0.02]
[1755292568958,0.80739692,4413.7,4412.5,2.26624804]
[1755292568959,0.60514239,4413.7,4412.5,2.26624804]
[1755292569159,2.91047132,4413.8,4412.2,0.9004]
[1755292569160,5.425,4413.8,4412.2,0.9004]
[1755292569461,3.0,4412.1,4409.5,0.681231]
[1755292569664,0.60468127,4411.7,4409.5,0.681231]
[1755292569849,3.0,4411.9,4409.5,0.681231]
[1755292569850,2.8716095,4411.3,4409.5,0.681231]
[1755292570160,2.8716095,4411.3,4409.3,0.4591]
[1755292570161,1.36,4411.0,4409.3,0.4591]
[1755292570362,3.0,4410.8,4409.3,0.4591]
[1755292570565,3.0,4410.6,4409.6,0.4591]
[1755292570858,2.425,4410.9,4409.1,0.02]
[1755292570859,2.425,4410.9,4409.9,0.4591]
[1755292571064,3.0,4410.7,4409.5,0.4591]
[1755292571266,5.425,4410.5,4409.2,2.72704064]
[1755292571630,2.425,4410.4,4409.2,2.72704064]
[1755292571827,2.26757369,4410.0,4409.1,0.02]
[1755292572027,0.60468127,4409.7,4409.1,0.02]
[1755292572269,3.0,4409.5,4409.1,0.02]
[1755292572467,3.0,4409.5,4407.1,2.28905918]
[1755292572468,1.36,4408.9,4407.1,0.02]
[1755292572684,2.26830915,4408.6,4407.1,0.02]
[1755292572828,3.0,4408.4,4407.1,0.02]
[1755292573034,3.0,4408.2,4407.1,0.02]
[1755292573575,5.8789,4408.2,4407.1,0.02]
[1755292573757,3.0,4408.2,4407.4,0.4591]
[1755292574130,3.0,4408.2,4407.5,0.55]
[1755292574370,3.0,4408.2,4408.1,0.4791]
[1755292574769,3.0,4408.2,4408.1,0.02]
[1755292575632,38.62633606,4408.2,4408.1,0.02]
[1755292576027,36.35783645,4408.2,4408.1,0.02]
[1755292576567,3.0,4408.1,4407.1,0.02]
[1755292576768,38.62638824,4408.1,4405.8,0.2495]
[1755292577076,2.26870547,4407.8,4406.7,0.001]
[1755292577275,3.0,4406.6,4405.8,0.2495]
[1755292577484,2.26968383,4405.9,4405.8,0.2495]
[1755292577661,35.26968383,4405.9,4405.8,0.2495]
[1755292577844,35.26968383,4405.9,4403.9,1.43]
[1755292577845,3.0,4405.8,4403.9,1.43]
[1755292578053,3.0,4405.4,4403.9,1.43]
[1755292578353,0.59670091,4405.5,4404.1,0.6241]
[1755292578533,0.47893645,4406.0,4404.3,2.27049184]
[1755292578728,0.59670091,4406.1,4404.1,0.165]
[1755292578942,2.26975811,4405.8,4404.1,0.165]
[1755292579145,3.0,4405.6,4404.1,0.02]
[1755292579447,3.0,4405.4,4404.1,0.02]
[1755292579646,0.1136,4404.4,4404.1,0.02]
[1755292580149,2.5386,4404.4,4404.1,0.02]
[1755292580381,0.59670091,4404.7,4404.1,0.02]
[1755292580678,0.47893645,4404.8,4404.1,0.02]
[1755292580975,0.59670091,4404.9,4404.1,0.02]
[1755292580976,0.47893645,4404.9,4404.1,0.02]
[1755292581174,3.0,4404.7,4404.1,0.02]
[1755292581346,3.0,4404.5,4404.1,0.02]
[1755292581547,0.47893645,4404.4,4404.1,0.02]
[1755292581747,0.47893645,4404.3,4404.1,0.02]
[1755292581988,2.90393645,4404.3,4404.1,0.02]
[1755292582194,0.47893645,4404.2,4404.1,0.02]
[1755292582343,2.90393645,4404.2,4404.1,0.02]
[1755292582548,6.50063736,4404.2,4404.1,0.02]
[1755292583493,0.47893645,4404.2,4404.1,0.02]
[1755292583695,0.47893645,4404.5,4404.2,2.82055096]
[1755292583902,0.47893645,4404.9,4404.3,0.4591]
[1755292584080,0.47893645,4404.8,4404.3,0.4591]
[1755292584285,0.47893645,4404.7,4404.1,0.02]
[1755292584593,3.0,4404.5,4404.1,0.02]
[1755292584791,0.59128916,4404.2,4404.1,0.02]
[1755292584994,33.47893645,4404.2,4404.1,0.02]
[1755292585165,34.0698648,4404.2,4404.1,0.02]
[1755292585793,36.4948648,4404.2,4404.1,0.02]
[1755292586406,0.47893645,4404.2,4404.1,0.02]
[1755292586706,0.47893645,4404.9,4404.1,0.6241]
[1755292586903,0.47893645,4404.8,4404.1,0.6241]
[1755292587104,0.47893645,4405.0,4404.1,0.6241]
[1755292587274,0.47893645,4404.9,4404.1,0.6241]
[1755292587469,0.47893645,4404.8,4404.1,0.4791]
[1755292587674,0.47893645,4405.1,4404.1,0.4791]
[1755292587902,30.47893645,4405.0,4404.1,0.4791]
[1755292588202,0.47893645,4404.9,4404.1,0.4791]
[1755292588409,0.47893645,4404.8,4404.1,0.4791]
[1755292588597,0.47893645,4405.1,4404.1,0.4791]
[1755292588786,30.47893645,4405.0,4404.1,0.4791]
[1755292588983,2.90393645,4404.9,4404.1,0.02]
[1755292589184,30.47893645,4404.8,4404.1,0.02]
[1755292589398,30.47893645,4404.7,4404.1,0.02]
[1755292589598,0.47893645,4404.6,4404.1,0.02]
[1755292589881,0.47893645,4404.5,4404.1,0.02]
[1755292590085,0.47893645,4404.4,4404.1,0.02]
[1755292590406,0.59253645,4404.3,4404.1,0.02]
[1755292590604,0.47893645,4404.2,4404.1,0.02]
[1755292591105,33.35783645,4404.2,4404.1,0.02]
[1755292591308,38.62839637,4404.2,4404.1,0.02]
[1755292591523,38.62839637,4404.2,4404.1,0.12]
[1755292592089,38.62839637,4404.2,4404.1,0.121]
[1755292593486,39.8217982,4404.2,4404.1,0.121]
[1755292594289,2.27066303,4404.0,4403.9,1.43]
[1755292594520,36.93325404,4404.0,4403.9,1.43]
[1755292594724,39.81215404,4404.0,4403.9,1.43]
[1755292595221,38.94788663,4404.0,4403.9,1.43]
[1755292596525,3.0,4403.9,4403.6,0.001]
[1755292596817,5.38441772,4403.7,4403.6,0.001]
[1755292597020,33.06914132,4403.7,4403.6,0.001]
[1755292597199,35.94514132,4403.7,4403.6,0.001]
[1755292597396,36.2985557,4403.7,4403.6,0.001]
[1755292597707,36.2985557,4403.7,4403.2,0.001]
[1755292597708,2.271024,4403.3,4403.2,0.001]
[1755292597894,33.0693476,4403.3,4403.2,0.001]
[1755292598090,39.29876198,4403.3,4403.2,0.001]
[1755292598290,40.97225376,4403.3,4403.2,0.001]
[1755292598491,38.9453476,4403.3,4403.2,0.001]